Workbook

Sheet 1. Info
R1: 1
N13: Version | O13: 1
C14: Applicant Name: | F14: PowerStream Inc.
C16: Service Territory: | F16: York Region and Simcoe County
C18: Name: | F18: Tom Barrett
C20: Title: | D20: Title: | F20: Manager, Rate Applications
C22: Phone Number: | F22: 905.532.4640 | AA22: Company Name
Z23: 1 | AA23: Algoma Power Inc.
C24: Email Address: | F24: tom.barrett@powerstream.ca | Z24: 2 | AA24: Atikokan Hydro Inc.
Z25: 3 | AA25: Attawapiskat Power Corp.
Z26: 4 | AA26: Bluewater Power Distribution Corporation
Z27: 5 | AA27: Brant County Power Inc.
C28: This Workbook Model is protected by copyright and is being made available to you solely for the purpose of filing your IRM application. You may use and copy this model for that purpose, and provide a copy of this model to any person that is advising or assisting you in that regard. Except as indicated above, any copying, reproduction, publication, sale, adaptation, translation, modification, reverse engineering or other use or dissemination of this model without the express written consent of the Ontario Energy Board is prohibited. If you provide a copy of this model to a person that is advising or assisting you in preparing the application or reviewing your draft rate order, you must ensure that the person understands and agrees to the restrictions noted above. While this model has been provided in Excel format and is required to be filed with the applications, the onus remains on the applicant to ensure the accuracy of the data and the results. | Z28: 6 | AA28: Brantford Power Inc.
Z29: 7 | AA29: Burlington Hydro Inc.
Z30: 8 | AA30: Cambridge and North Dumfries Hydro Inc.
Z31: 9 | AA31: Canadian Niagara Power Inc.
Z32: 10 | AA32: Centre Wellington Hydro Ltd.
Z33: 11 | AA33: Chapleau Public Utilities Corporation
Z34: 12 | AA34: Clinton Power Corporation
Z35: 13 | AA35: COLLUS Power Corporation
Z36: 14 | AA36: Cooperative Hydro Embrun Inc.
Z37: 15 | AA37: E.L.K. Energy Inc.
Z38: 16 | AA38: Enersource Hydro Mississauga Inc.
Z39: 17 | AA39: Entegrus Powerlines Inc.
Z40: 18 | AA40: ENWIN Utilities Ltd.
Z41: 19 | AA41: Erie Thames Powerlines Corporation
Z42: 20 | AA42: Espanola Regional Hydro Distribution Corporation
Z43: 21 | AA43: Essex Powerlines Corporation
Z44: 22 | AA44: Festival Hydro Inc.
Z45: 23 | AA45: Fort Albany Power Corporation
Z46: 24 | AA46: Fort Frances Power Corporation
Z47: 25 | AA47: Greater Sudbury Hydro Inc.
Z48: 26 | AA48: Grimsby Power Inc.
Z49: 27 | AA49: Guelph Hydro Electric Systems Inc.
Z50: 28 | AA50: Haldimand County Hydro Inc.
Z51: 29 | AA51: Halton Hills Hydro Inc.
Z52: 30 | AA52: Hearst Power Distribution Company Limited
Z53: 31 | AA53: Horizon Utilities Corporation
Z54: 32 | AA54: Hydro 2000 Inc.
Z55: 33 | AA55: Hydro Hawkesbury Inc.
Z56: 34 | AA56: Hydro One Brampton Networks Inc.
Z57: 35 | AA57: Hydro One Networks Inc.
Z58: 36 | AA58: Hydro Ottawa Limited
Z59: 37 | AA59: Innisfil Hydro Distribution Systems Limited
Z60: 38 | AA60: Kashechewan Power Corporation
Z61: 39 | AA61: Kenora Hydro Electric Corporation Ltd.
Z62: 40 | AA62: Kingston Hydro Corporation
Z63: 41 | AA63: Kitchener-Wilmot Hydro Inc.
Z64: 42 | AA64: Lakefront Utilities Inc.
Z65: 43 | AA65: Lakeland Power Distribution Ltd.
Z66: 44 | AA66: London Hydro Inc.
Z67: 45 | AA67: Midland Power Utility Corporation
Z68: 46 | AA68: Milton Hydro Distribution inc.
Z69: 47 | AA69: Newmarket - Tay Power Distribution Ltd.
Z70: 48 | AA70: Niagara Peninsula Energy Inc.
Z71: 49 | AA71: Niagara-on-the-Lake Hydro Inc.
Z72: 50 | AA72: Norfolk Power Distribution Inc.
Z73: 51 | AA73: North Bay Hydro Distribution Limited
Z74: 52 | AA74: Northern Ontario Wires Inc.
Z75: 53 | AA75: Oakville Hydro Electricity Distribution Inc.
Z76: 54 | AA76: Orangeville Hydro Limited
Z77: 55 | AA77: Orillia Power Distribution Corporation
Z78: 56 | AA78: Oshawa PUC Networks Inc.
Z79: 57 | AA79: Ottawa River Power Corporation
Z80: 58 | AA80: Parry Sound Power Corporation
Z81: 59 | AA81: Peterborough Distribution Incorporated
Z82: 60 | AA82: PowerStream Inc.
Z83: 61 | AA83: PUC Distribution Inc.
Z84: 62 | AA84: Renfrew Hydro Inc.
Z85: 63 | AA85: Rideau St. Lawrence Distribution Inc.
Z86: 64 | AA86: Sioux Lookout Hydro Inc.
Z87: 65 | AA87: St. Thomas Energy Inc.
Z88: 66 | AA88: Thunder Bay Hydro Electricity Distribution Inc.
Z89: 67 | AA89: Tillsonburg Hydro Inc.
Z90: 68 | AA90: Toronto Hydro-Electric System Limited
Z91: 69 | AA91: Veridian Connections Inc.
Z92: 70 | AA92: Wasaga Distribution Inc.
Z93: 71 | AA93: Waterloo North Hydro Inc.
Z94: 72 | AA94: Welland Hydro-Electric System Corp.
Z95: 73 | AA95: Wellington North Power Inc.
Z96: 74 | AA96: West Coast Huron Energy Inc.
Z97: 75 | AA97: West Perth Power Inc.
Z98: 76 | AA98: Westario Power Inc.
Z99: 77 | AA99: Whitby Hydro Electric Corporation
Z100: 78 | AA100: Woodstock Hydro Services Inc.

Sheet Incremental Capital Summary
B10: Using the pull-down menu below, please identify what year of the IRM cycle you are in.
B11: 1st year of IRM cycle
B13: Name or General Description of Project
B14: System Renewal - Station Replacements
B16: Details of Project
B17: See Appendix G
G19: Capital Cost (1/2 year rule applied) | I19: Depreciation Rate
B20: Asset Component | E20: Capital Cost | K20: CCA Class | M20: CCA Rate
B21: 1 | C21: Switchgear and Relays | E21: ='[2]Station Replacement'!$G$12 -> 407256 | G21: =IF($B$11="4th year of IRM cycle", E21/2, 0) -> 0 | I21: 0.0333 | K21: 47 | M21: 0.08
B22: 2 | C22: Power Transformer | E22: ='[2]Station Replacement'!$G$20 -> 35188 | G22: =IF($B$11="4th year of IRM cycle", E22/2, 0) -> 0 | I22: 0.025 | K22: 47 | M22: 0.08
B23: 3 | C23: Poles, Towers and Fixtures | E23: ='[2]Station Replacement'!$G$28 -> 36115 | G23: =IF($B$11="4th year of IRM cycle", E23/2, 0) -> 0 | I23: 0.0222222 | K23: 47 | M23: 0.08
B24: 4 | C24: Overhead conductor and devices | E24: ='[2]Station Replacement'!$G$36 -> 384843 | G24: =IF($B$11="4th year of IRM cycle", E24/2, 0) -> 0 | I24: 0.025 | K24: 47 | M24: 0.08
B25: 5 | C25: Remote Terminal Units | E25: ='[2]Station Replacement'!$G$43 -> 199331 | G25: =IF($B$11="4th year of IRM cycle", E25/2, 0) -> 0 | I25: 0.0666 | K25: 47 | M25: 0.08
E27: 2014 | I27: 2015 | K27: 2016 | M27: 2017 | O27: 2018
B28: Closing Net Fixed Asset | E28: =SUM('Fixed Asset Amort and UCC 1'!D32,'Fixed Asset Amort and UCC 2'!D32, 'Fixed Asset Amort and UCC 3'!D32, 'Fixed Asset Amort and UCC 4'!D32, 'Fixed Asset Amort and UCC 5'!D32) -> 1024592.601 | I28: =SUM('Fixed Asset Amort and UCC 1'!E32,'Fixed Asset Amort and UCC 2'!E32, 'Fixed Asset Amort and UCC 3'!E32, 'Fixed Asset Amort and UCC 4'!E32, 'Fixed Asset Amort and UCC 5'!E32) -> 986452.2017 | K28: =SUM('Fixed Asset Amort and UCC 1'!F32,'Fixed Asset Amort and UCC 2'!F32, 'Fixed Asset Amort and UCC 3'!F32, 'Fixed Asset Amort and UCC 4'!F32, 'Fixed Asset Amort and UCC 5'!F32) -> 948311.8025 | M28: =SUM('Fixed Asset Amort and UCC 1'!G32,'Fixed Asset Amort and UCC 2'!G32, 'Fixed Asset Amort and UCC 3'!G32, 'Fixed Asset Amort and UCC 4'!G32, 'Fixed Asset Amort and UCC 5'!G32) -> 910171.4034 | O28: =SUM('Fixed Asset Amort and UCC 1'!H32,'Fixed Asset Amort and UCC 2'!H32, 'Fixed Asset Amort and UCC 3'!H32, 'Fixed Asset Amort and UCC 4'!H32, 'Fixed Asset Amort and UCC 5'!H32) -> 872031.0042
B30: Amortization Expense | E30: =SUM('Fixed Asset Amort and UCC 1'!D28,'Fixed Asset Amort and UCC 2'!D28, 'Fixed Asset Amort and UCC 3'!D28, 'Fixed Asset Amort and UCC 4'!D28, 'Fixed Asset Amort and UCC 5'!D28) -> 38140.39915 | I30: =SUM('Fixed Asset Amort and UCC 1'!E28,'Fixed Asset Amort and UCC 2'!E28, 'Fixed Asset Amort and UCC 3'!E28, 'Fixed Asset Amort and UCC 4'!E28, 'Fixed Asset Amort and UCC 5'!E28) -> 38140.39915 | K30: =SUM('Fixed Asset Amort and UCC 1'!F28,'Fixed Asset Amort and UCC 2'!F28, 'Fixed Asset Amort and UCC 3'!F28, 'Fixed Asset Amort and UCC 4'!F28, 'Fixed Asset Amort and UCC 5'!F28) -> 38140.39915 | M30: =SUM('Fixed Asset Amort and UCC 1'!G28,'Fixed Asset Amort and UCC 2'!G28, 'Fixed Asset Amort and UCC 3'!G28, 'Fixed Asset Amort and UCC 4'!G28, 'Fixed Asset Amort and UCC 5'!G28) -> 38140.39915 | O30: =SUM('Fixed Asset Amort and UCC 1'!H28,'Fixed Asset Amort and UCC 2'!H28, 'Fixed Asset Amort and UCC 3'!H28, 'Fixed Asset Amort and UCC 4'!H28, 'Fixed Asset Amort and UCC 5'!H28) -> 38140.39915
B32: CCA | E32: =SUM('Fixed Asset Amort and UCC 1'!D50,'Fixed Asset Amort and UCC 2'!D50, 'Fixed Asset Amort and UCC 3'!D50, 'Fixed Asset Amort and UCC 4'!D50, 'Fixed Asset Amort and UCC 5'!D50) -> 85018.64 | I32: =SUM('Fixed Asset Amort and UCC 1'!E50,'Fixed Asset Amort and UCC 2'!E50, 'Fixed Asset Amort and UCC 3'!E50, 'Fixed Asset Amort and UCC 4'!E50, 'Fixed Asset Amort and UCC 5'!E50) -> 78217.1488 | K32: =SUM('Fixed Asset Amort and UCC 1'!F50,'Fixed Asset Amort and UCC 2'!F50, 'Fixed Asset Amort and UCC 3'!F50, 'Fixed Asset Amort and UCC 4'!F50, 'Fixed Asset Amort and UCC 5'!F50) -> 71959.7769 | M32: =SUM('Fixed Asset Amort and UCC 1'!G50,'Fixed Asset Amort and UCC 2'!G50, 'Fixed Asset Amort and UCC 3'!G50, 'Fixed Asset Amort and UCC 4'!G50, 'Fixed Asset Amort and UCC 5'!G50) -> 66202.99474 | O32: =SUM('Fixed Asset Amort and UCC 1'!H50,'Fixed Asset Amort and UCC 2'!H50, 'Fixed Asset Amort and UCC 3'!H50, 'Fixed Asset Amort and UCC 4'!H50, 'Fixed Asset Amort and UCC 5'!H50) -> 60906.75516

Sheet Fixed Asset Amort and UCC 1
B10: Fixed Asset Amortization and UCC 1
B12: Name or General Description of Project
B13: =IF(ISBLANK('Incremental Capital Summary'!B14), "", 'Incremental Capital Summary'!B14) -> System Renewal - Station Replacements
B15: Asset Component
B16: =IF(ISBLANK('Incremental Capital Summary'!C21),"",'Incremental Capital Summary'!C21) -> Switchgear and Relays
B19: Average Net Fixed Assets
D20: 2014 | E20: 2015 | F20: 2016 | G20: 2017 | H20: 2018
B21: Net Fixed Assets | D21: Forecasted | E21: Forecasted | F21: Forecasted | G21: Forecasted | H21: Forecasted
B23: Opening Capital Investment | D23: 0 | E23: =D25 -> 407256 | F23: =E25 -> 407256 | G23: =F25 -> 407256 | H23: =G25 -> 407256
B24: Capital Investment | D24: =IF('Incremental Capital Summary'!$B$11="4th year of IRM cycle", 'Incremental Capital Summary'!E21/2, 'Incremental Capital Summary'!E21) -> 407256 | E24: 0 | F24: 0 | G24: 0 | H24: 0
B25: Closing Capital Investment | D25: =SUM(D23:D24) -> 407256 | E25: =SUM(E23:E24) -> 407256 | F25: =SUM(F23:F24) -> 407256 | G25: =SUM(G23:G24) -> 407256 | H25: =SUM(H23:H24) -> 407256
B27: Opening Accumulated Amortization | D27: 0 | E27: =D29 -> 13561.6248 | F27: =E29 -> 27123.2496 | G27: =F29 -> 40684.8744 | H27: =G29 -> 54246.4992
B28: Amortization | C28: ='Incremental Capital Summary'!I21 -> 0.0333 | D28: =D24*$C$28 -> 13561.6248 | E28: =E23*$C$28 -> 13561.6248 | F28: =F23*$C$28 -> 13561.6248 | G28: =G23*$C$28 -> 13561.6248 | H28: =H23*$C$28 -> 13561.6248
B29: Closing Accumulated Amortization | D29: =SUM(D27:D28) -> 13561.6248 | E29: =SUM(E27:E28) -> 27123.2496 | F29: =SUM(F27:F28) -> 40684.8744 | G29: =SUM(G27:G28) -> 54246.4992 | H29: =SUM(H27:H28) -> 67808.124
B31: Opening Net Fixed Assets | D31: 0 | E31: =E23-E27 -> 393694.3752 | F31: =F23-F27 -> 380132.7504 | G31: =G23-G27 -> 366571.1256 | H31: =H23-H27 -> 353009.5008
B32: Closing Net Fixed Assets | D32: =D25-D29 -> 393694.3752 | E32: =E25-E29 -> 380132.7504 | F32: =F25-F29 -> 366571.1256 | G32: =G25-G29 -> 353009.5008 | H32: =H25-H29 -> 339447.876
B33: Average Net Fixed Assets | D33: =SUM(D31:D32)/2 -> 196847.1876 | E33: =SUM(E31:E32)/2 -> 386913.5628 | F33: =SUM(F31:F32)/2 -> 373351.938 | G33: =SUM(G31:G32)/2 -> 359790.3132 | H33: =SUM(H31:H32)/2 -> 346228.6884
B38: For PILs Calculation
B40: UCC | D40: 2014 | E40: 2015 | F40: 2016 | G40: 2017 | H40: 2018
D41: Forecasted | E41: Forecasted | F41: Forecasted | G41: Forecasted | H41: Forecasted
B43: Opening UCC | D43: 0 | E43: =D51 -> 374675.52 | F43: =E51 -> 344701.4784 | G43: =F51 -> 317125.3601 | H43: =G51 -> 291755.3313
B44: Capital Additions | D44: =D24 -> 407256 | E44: =E24 -> 0 | F44: =F24 -> 0 | G44: =G24 -> 0 | H44: =H24 -> 0
B45: UCC Before Half Year Rule | D45: =SUM(D43:D44) -> 407256 | E45: =SUM(E43:E44) -> 374675.52 | F45: =SUM(F43:F44) -> 344701.4784 | G45: =SUM(G43:G44) -> 317125.3601 | H45: =SUM(H43:H44) -> 291755.3313
B46: Half Year Rule (1/2 Additions - Disposals) | D46: 0 | E46: =E44/2 -> 0 | F46: =F44/2 -> 0 | G46: =G44/2 -> 0 | H46: =H44/2 -> 0
B47: Reduced UCC | D47: =D45-D46 -> 407256 | E47: =E45-E46 -> 374675.52 | F47: =F45-F46 -> 344701.4784 | G47: =G45-G46 -> 317125.3601 | H47: =H45-H46 -> 291755.3313
B48: CCA Rate Class | C48: ='Incremental Capital Summary'!K21 -> 47
B49: CCA Rate | C49: ='Incremental Capital Summary'!M21 -> 0.08
B50: CCA | D50: =D47*$C$49 -> 32580.48 | E50: =E47*$C$49 -> 29974.0416 | F50: =F47*$C$49 -> 27576.11827 | G50: =G47*$C$49 -> 25370.02881 | H50: =H47*$C$49 -> 23340.42651
B51: Closing UCC | D51: =D45-D50 -> 374675.52 | E51: =E45-E50 -> 344701.4784 | F51: =F45-F50 -> 317125.3601 | G51: =G45-G50 -> 291755.3313 | H51: =H45-H50 -> 268414.9048

Sheet Fixed Asset Amort and UCC 2
B10: Fixed Asset Amortization and UCC 2
B12: Name or General Description of Project
B13: =IF(ISBLANK('Incremental Capital Summary'!B14), "", 'Incremental Capital Summary'!B14) -> System Renewal - Station Replacements
B15: Asset Component
B16: =IF(ISBLANK('Incremental Capital Summary'!C22),"",'Incremental Capital Summary'!C22) -> Power Transformer
B19: Average Net Fixed Assets
D20: 2014 | E20: 2015 | F20: 2016 | G20: 2017 | H20: 2018
B21: Net Fixed Assets | D21: Forecasted | E21: Forecasted | F21: Forecasted | G21: Forecasted | H21: Forecasted
B23: Opening Capital Investment | D23: 0 | E23: =D25 -> 35188 | F23: =E25 -> 35188 | G23: =F25 -> 35188 | H23: =G25 -> 35188
B24: Capital Investment | D24: =IF('Incremental Capital Summary'!$B$11="4th year of IRM cycle", 'Incremental Capital Summary'!E22/2, 'Incremental Capital Summary'!E22) -> 35188 | E24: 0 | F24: 0 | G24: 0 | H24: 0
B25: Closing Capital Investment | D25: =SUM(D23:D24) -> 35188 | E25: =SUM(E23:E24) -> 35188 | F25: =SUM(F23:F24) -> 35188 | G25: =SUM(G23:G24) -> 35188 | H25: =SUM(H23:H24) -> 35188
B27: Opening Accumulated Amortization | D27: 0 | E27: =D29 -> 879.7 | F27: =E29 -> 1759.4 | G27: =F29 -> 2639.1 | H27: =G29 -> 3518.8
B28: Amortization | C28: ='Incremental Capital Summary'!I22 -> 0.025 | D28: =D24*$C$28 -> 879.7 | E28: =E23*$C$28 -> 879.7 | F28: =F23*$C$28 -> 879.7 | G28: =G23*$C$28 -> 879.7 | H28: =H23*$C$28 -> 879.7
B29: Closing Accumulated Amortization | D29: =SUM(D27:D28) -> 879.7 | E29: =SUM(E27:E28) -> 1759.4 | F29: =SUM(F27:F28) -> 2639.1 | G29: =SUM(G27:G28) -> 3518.8 | H29: =SUM(H27:H28) -> 4398.5
B31: Opening Net Fixed Assets | D31: 0 | E31: =E23-E27 -> 34308.3 | F31: =F23-F27 -> 33428.6 | G31: =G23-G27 -> 32548.9 | H31: =H23-H27 -> 31669.2
B32: Closing Net Fixed Assets | D32: =D25-D29 -> 34308.3 | E32: =E25-E29 -> 33428.6 | F32: =F25-F29 -> 32548.9 | G32: =G25-G29 -> 31669.2 | H32: =H25-H29 -> 30789.5
B33: Average Net Fixed Assets | D33: =SUM(D31:D32)/2 -> 17154.15 | E33: =SUM(E31:E32)/2 -> 33868.45 | F33: =SUM(F31:F32)/2 -> 32988.75 | G33: =SUM(G31:G32)/2 -> 32109.05 | H33: =SUM(H31:H32)/2 -> 31229.35
B38: For PILs Calculation
B40: UCC | D40: 2014 | E40: 2015 | F40: 2016 | G40: 2017 | H40: 2018
D41: Forecasted | E41: Forecasted | F41: Forecasted | G41: Forecasted | H41: Forecasted
B43: Opening UCC | D43: 0 | E43: =D51 -> 32372.96 | F43: =E51 -> 29783.1232 | G43: =F51 -> 27400.47334 | H43: =G51 -> 25208.43548
B44: Capital Additions | D44: =D24 -> 35188 | E44: =E24 -> 0 | F44: =F24 -> 0 | G44: =G24 -> 0 | H44: =H24 -> 0
B45: UCC Before Half Year Rule | D45: =SUM(D43:D44) -> 35188 | E45: =SUM(E43:E44) -> 32372.96 | F45: =SUM(F43:F44) -> 29783.1232 | G45: =SUM(G43:G44) -> 27400.47334 | H45: =SUM(H43:H44) -> 25208.43548
B46: Half Year Rule (1/2 Additions - Disposals) | D46: 0 | E46: =E44/2 -> 0 | F46: =F44/2 -> 0 | G46: =G44/2 -> 0 | H46: =H44/2 -> 0
B47: Reduced UCC | D47: =D45-D46 -> 35188 | E47: =E45-E46 -> 32372.96 | F47: =F45-F46 -> 29783.1232 | G47: =G45-G46 -> 27400.47334 | H47: =H45-H46 -> 25208.43548
B48: CCA Rate Class | C48: ='Incremental Capital Summary'!K22 -> 47
B49: CCA Rate | C49: ='Incremental Capital Summary'!M22 -> 0.08
B50: CCA | D50: =D47*$C$49 -> 2815.04 | E50: =E47*$C$49 -> 2589.8368 | F50: =F47*$C$49 -> 2382.649856 | G50: =G47*$C$49 -> 2192.037868 | H50: =H47*$C$49 -> 2016.674838
B51: Closing UCC | D51: =D45-D50 -> 32372.96 | E51: =E45-E50 -> 29783.1232 | F51: =F45-F50 -> 27400.47334 | G51: =G45-G50 -> 25208.43548 | H51: =H45-H50 -> 23191.76064

Sheet Fixed Asset Amort and UCC 3
B10: Fixed Asset Amortization and UCC 3
B12: Name or General Description of Project
B13: =IF(ISBLANK('Incremental Capital Summary'!B14), "", 'Incremental Capital Summary'!B14) -> System Renewal - Station Replacements
B15: Asset Component
B16: =IF(ISBLANK('Incremental Capital Summary'!C23),"",'Incremental Capital Summary'!C23) -> Poles, Towers and Fixtures
B19: Average Net Fixed Assets
D20: 2014 | E20: 2015 | F20: 2016 | G20: 2017 | H20: 2018
B21: Net Fixed Assets | D21: Forecasted | E21: Forecasted | F21: Forecasted | G21: Forecasted | H21: Forecasted
B23: Opening Capital Investment | D23: 0 | E23: =D25 -> 36115 | F23: =E25 -> 36115 | G23: =F25 -> 36115 | H23: =G25 -> 36115
B24: Capital Investment | D24: =IF('Incremental Capital Summary'!$B$11="4th year of IRM cycle", 'Incremental Capital Summary'!E23/2, 'Incremental Capital Summary'!E23) -> 36115 | E24: 0 | F24: 0 | G24: 0 | H24: 0
B25: Closing Capital Investment | D25: =SUM(D23:D24) -> 36115 | E25: =SUM(E23:E24) -> 36115 | F25: =SUM(F23:F24) -> 36115 | G25: =SUM(G23:G24) -> 36115 | H25: =SUM(H23:H24) -> 36115
B27: Opening Accumulated Amortization | D27: 0 | E27: =D29 -> 802.554753 | F27: =E29 -> 1605.109506 | G27: =F29 -> 2407.664259 | H27: =G29 -> 3210.219012
B28: Amortization | C28: ='Incremental Capital Summary'!I23 -> 0.0222222 | D28: =D24*$C$28 -> 802.554753 | E28: =E23*$C$28 -> 802.554753 | F28: =F23*$C$28 -> 802.554753 | G28: =G23*$C$28 -> 802.554753 | H28: =H23*$C$28 -> 802.554753
B29: Closing Accumulated Amortization | D29: =SUM(D27:D28) -> 802.554753 | E29: =SUM(E27:E28) -> 1605.109506 | F29: =SUM(F27:F28) -> 2407.664259 | G29: =SUM(G27:G28) -> 3210.219012 | H29: =SUM(H27:H28) -> 4012.773765
B31: Opening Net Fixed Assets | D31: 0 | E31: =E23-E27 -> 35312.44525 | F31: =F23-F27 -> 34509.89049 | G31: =G23-G27 -> 33707.33574 | H31: =H23-H27 -> 32904.78099
B32: Closing Net Fixed Assets | D32: =D25-D29 -> 35312.44525 | E32: =E25-E29 -> 34509.89049 | F32: =F25-F29 -> 33707.33574 | G32: =G25-G29 -> 32904.78099 | H32: =H25-H29 -> 32102.22624
B33: Average Net Fixed Assets | D33: =SUM(D31:D32)/2 -> 17656.22262 | E33: =SUM(E31:E32)/2 -> 34911.16787 | F33: =SUM(F31:F32)/2 -> 34108.61312 | G33: =SUM(G31:G32)/2 -> 33306.05836 | H33: =SUM(H31:H32)/2 -> 32503.50361
B38: For PILs Calculation
B40: UCC | D40: 2014 | E40: 2015 | F40: 2016 | G40: 2017 | H40: 2018
D41: Forecasted | E41: Forecasted | F41: Forecasted | G41: Forecasted | H41: Forecasted
B43: Opening UCC | D43: 0 | E43: =D51 -> 33225.8 | F43: =E51 -> 30567.736 | G43: =F51 -> 28122.31712 | H43: =G51 -> 25872.53175
B44: Capital Additions | D44: =D24 -> 36115 | E44: =E24 -> 0 | F44: =F24 -> 0 | G44: =G24 -> 0 | H44: =H24 -> 0
B45: UCC Before Half Year Rule | D45: =SUM(D43:D44) -> 36115 | E45: =SUM(E43:E44) -> 33225.8 | F45: =SUM(F43:F44) -> 30567.736 | G45: =SUM(G43:G44) -> 28122.31712 | H45: =SUM(H43:H44) -> 25872.53175
B46: Half Year Rule (1/2 Additions - Disposals) | D46: 0 | E46: =E44/2 -> 0 | F46: =F44/2 -> 0 | G46: =G44/2 -> 0 | H46: =H44/2 -> 0
B47: Reduced UCC | D47: =D45-D46 -> 36115 | E47: =E45-E46 -> 33225.8 | F47: =F45-F46 -> 30567.736 | G47: =G45-G46 -> 28122.31712 | H47: =H45-H46 -> 25872.53175
B48: CCA Rate Class | C48: ='Incremental Capital Summary'!K23 -> 47
B49: CCA Rate | C49: ='Incremental Capital Summary'!M23 -> 0.08
B50: CCA | D50: =D47*$C$49 -> 2889.2 | E50: =E47*$C$49 -> 2658.064 | F50: =F47*$C$49 -> 2445.41888 | G50: =G47*$C$49 -> 2249.78537 | H50: =H47*$C$49 -> 2069.80254
B51: Closing UCC | D51: =D45-D50 -> 33225.8 | E51: =E45-E50 -> 30567.736 | F51: =F45-F50 -> 28122.31712 | G51: =G45-G50 -> 25872.53175 | H51: =H45-H50 -> 23802.72921

Sheet Fixed Asset Amort and UCC 4
B10: Fixed Asset Amortization and UCC 4
B12: Name or General Description of Project
B13: =IF(ISBLANK('Incremental Capital Summary'!B14), "", 'Incremental Capital Summary'!B14) -> System Renewal - Station Replacements
B15: Asset Component
B16: =IF(ISBLANK('Incremental Capital Summary'!C24),"",'Incremental Capital Summary'!C24) -> Overhead conductor and devices
B19: Average Net Fixed Assets
D20: 2014 | E20: 2015 | F20: 2016 | G20: 2017 | H20: 2018
B21: Net Fixed Assets | D21: Forecasted | E21: Forecasted | F21: Forecasted | G21: Forecasted | H21: Forecasted
B23: Opening Capital Investment | D23: 0 | E23: =D25 -> 384843 | F23: =E25 -> 384843 | G23: =F25 -> 384843 | H23: =G25 -> 384843
B24: Capital Investment | D24: =IF('Incremental Capital Summary'!$B$11="4th year of IRM cycle", 'Incremental Capital Summary'!E24/2, 'Incremental Capital Summary'!E24) -> 384843 | E24: 0 | F24: 0 | G24: 0 | H24: 0
B25: Closing Capital Investment | D25: =SUM(D23:D24) -> 384843 | E25: =SUM(E23:E24) -> 384843 | F25: =SUM(F23:F24) -> 384843 | G25: =SUM(G23:G24) -> 384843 | H25: =SUM(H23:H24) -> 384843
B27: Opening Accumulated Amortization | D27: 0 | E27: =D29 -> 9621.075 | F27: =E29 -> 19242.15 | G27: =F29 -> 28863.225 | H27: =G29 -> 38484.3
B28: Amortization | C28: ='Incremental Capital Summary'!I24 -> 0.025 | D28: =D24*$C$28 -> 9621.075 | E28: =E23*$C$28 -> 9621.075 | F28: =F23*$C$28 -> 9621.075 | G28: =G23*$C$28 -> 9621.075 | H28: =H23*$C$28 -> 9621.075
B29: Closing Accumulated Amortization | D29: =SUM(D27:D28) -> 9621.075 | E29: =SUM(E27:E28) -> 19242.15 | F29: =SUM(F27:F28) -> 28863.225 | G29: =SUM(G27:G28) -> 38484.3 | H29: =SUM(H27:H28) -> 48105.375
B31: Opening Net Fixed Assets | D31: 0 | E31: =E23-E27 -> 375221.925 | F31: =F23-F27 -> 365600.85 | G31: =G23-G27 -> 355979.775 | H31: =H23-H27 -> 346358.7
B32: Closing Net Fixed Assets | D32: =D25-D29 -> 375221.925 | E32: =E25-E29 -> 365600.85 | F32: =F25-F29 -> 355979.775 | G32: =G25-G29 -> 346358.7 | H32: =H25-H29 -> 336737.625
B33: Average Net Fixed Assets | D33: =SUM(D31:D32)/2 -> 187610.9625 | E33: =SUM(E31:E32)/2 -> 370411.3875 | F33: =SUM(F31:F32)/2 -> 360790.3125 | G33: =SUM(G31:G32)/2 -> 351169.2375 | H33: =SUM(H31:H32)/2 -> 341548.1625
B38: For PILs Calculation
B40: UCC | D40: 2014 | E40: 2015 | F40: 2016 | G40: 2017 | H40: 2018
D41: Forecasted | E41: Forecasted | F41: Forecasted | G41: Forecasted | H41: Forecasted
B43: Opening UCC | D43: 0 | E43: =D51 -> 354055.56 | F43: =E51 -> 325731.1152 | G43: =F51 -> 299672.626 | H43: =G51 -> 275698.8159
B44: Capital Additions | D44: =D24 -> 384843 | E44: =E24 -> 0 | F44: =F24 -> 0 | G44: =G24 -> 0 | H44: =H24 -> 0
B45: UCC Before Half Year Rule | D45: =SUM(D43:D44) -> 384843 | E45: =SUM(E43:E44) -> 354055.56 | F45: =SUM(F43:F44) -> 325731.1152 | G45: =SUM(G43:G44) -> 299672.626 | H45: =SUM(H43:H44) -> 275698.8159
B46: Half Year Rule (1/2 Additions - Disposals) | D46: 0 | E46: =E44/2 -> 0 | F46: =F44/2 -> 0 | G46: =G44/2 -> 0 | H46: =H44/2 -> 0
B47: Reduced UCC | D47: =D45-D46 -> 384843 | E47: =E45-E46 -> 354055.56 | F47: =F45-F46 -> 325731.1152 | G47: =G45-G46 -> 299672.626 | H47: =H45-H46 -> 275698.8159
B48: CCA Rate Class | C48: ='Incremental Capital Summary'!K24 -> 47
B49: CCA Rate | C49: ='Incremental Capital Summary'!M24 -> 0.08
B50: CCA | D50: =D47*$C$49 -> 30787.44 | E50: =E47*$C$49 -> 28324.4448 | F50: =F47*$C$49 -> 26058.48922 | G50: =G47*$C$49 -> 23973.81008 | H50: =H47*$C$49 -> 22055.90527
B51: Closing UCC | D51: =D45-D50 -> 354055.56 | E51: =E45-E50 -> 325731.1152 | F51: =F45-F50 -> 299672.626 | G51: =G45-G50 -> 275698.8159 | H51: =H45-H50 -> 253642.9106

Sheet Fixed Asset Amort and UCC 5
B10: Fixed Asset Amortization and UCC 5
B12: Name or General Description of Project
B13: =IF(ISBLANK('Incremental Capital Summary'!B14), "", 'Incremental Capital Summary'!B14) -> System Renewal - Station Replacements
B15: Asset Component
B16: =IF(ISBLANK('Incremental Capital Summary'!C25),"",'Incremental Capital Summary'!C25) -> Remote Terminal Units
B19: Average Net Fixed Assets
D20: 2014 | E20: 2015 | F20: 2016 | G20: 2017 | H20: 2018
B21: Net Fixed Assets | D21: Forecasted | E21: Forecasted | F21: Forecasted | G21: Forecasted | H21: Forecasted
B23: Opening Capital Investment | D23: 0 | E23: =D25 -> 199331 | F23: =E25 -> 199331 | G23: =F25 -> 199331 | H23: =G25 -> 199331
B24: Capital Investment | D24: =IF('Incremental Capital Summary'!$B$11="4th year of IRM cycle", 'Incremental Capital Summary'!E25/2, 'Incremental Capital Summary'!E25) -> 199331 | E24: 0 | F24: 0 | G24: 0 | H24: 0
B25: Closing Capital Investment | D25: =SUM(D23:D24) -> 199331 | E25: =SUM(E23:E24) -> 199331 | F25: =SUM(F23:F24) -> 199331 | G25: =SUM(G23:G24) -> 199331 | H25: =SUM(H23:H24) -> 199331
B27: Opening Accumulated Amortization | D27: 0 | E27: =D29 -> 13275.4446 | F27: =E29 -> 26550.8892 | G27: =F29 -> 39826.3338 | H27: =G29 -> 53101.7784
B28: Amortization | C28: ='Incremental Capital Summary'!I25 -> 0.0666 | D28: =D24*$C$28 -> 13275.4446 | E28: =E23*$C$28 -> 13275.4446 | F28: =F23*$C$28 -> 13275.4446 | G28: =G23*$C$28 -> 13275.4446 | H28: =H23*$C$28 -> 13275.4446
B29: Closing Accumulated Amortization | D29: =SUM(D27:D28) -> 13275.4446 | E29: =SUM(E27:E28) -> 26550.8892 | F29: =SUM(F27:F28) -> 39826.3338 | G29: =SUM(G27:G28) -> 53101.7784 | H29: =SUM(H27:H28) -> 66377.223
B31: Opening Net Fixed Assets | D31: 0 | E31: =E23-E27 -> 186055.5554 | F31: =F23-F27 -> 172780.1108 | G31: =G23-G27 -> 159504.6662 | H31: =H23-H27 -> 146229.2216
B32: Closing Net Fixed Assets | D32: =D25-D29 -> 186055.5554 | E32: =E25-E29 -> 172780.1108 | F32: =F25-F29 -> 159504.6662 | G32: =G25-G29 -> 146229.2216 | H32: =H25-H29 -> 132953.777
B33: Average Net Fixed Assets | D33: =SUM(D31:D32)/2 -> 93027.7777 | E33: =SUM(E31:E32)/2 -> 179417.8331 | F33: =SUM(F31:F32)/2 -> 166142.3885 | G33: =SUM(G31:G32)/2 -> 152866.9439 | H33: =SUM(H31:H32)/2 -> 139591.4993
B38: For PILs Calculation
B40: UCC | D40: 2014 | E40: 2015 | F40: 2016 | G40: 2017 | H40: 2018
D41: Forecasted | E41: Forecasted | F41: Forecasted | G41: Forecasted | H41: Forecasted
B43: Opening UCC | D43: 0 | E43: =D51 -> 183384.52 | F43: =E51 -> 168713.7584 | G43: =F51 -> 155216.6577 | H43: =G51 -> 142799.3251
B44: Capital Additions | D44: =D24 -> 199331 | E44: =E24 -> 0 | F44: =F24 -> 0 | G44: =G24 -> 0 | H44: =H24 -> 0
B45: UCC Before Half Year Rule | D45: =SUM(D43:D44) -> 199331 | E45: =SUM(E43:E44) -> 183384.52 | F45: =SUM(F43:F44) -> 168713.7584 | G45: =SUM(G43:G44) -> 155216.6577 | H45: =SUM(H43:H44) -> 142799.3251
B46: Half Year Rule (1/2 Additions - Disposals) | D46: 0 | E46: =E44/2 -> 0 | F46: =F44/2 -> 0 | G46: =G44/2 -> 0 | H46: =H44/2 -> 0
B47: Reduced UCC | D47: =D45-D46 -> 199331 | E47: =E45-E46 -> 183384.52 | F47: =F45-F46 -> 168713.7584 | G47: =G45-G46 -> 155216.6577 | H47: =H45-H46 -> 142799.3251
B48: CCA Rate Class | C48: ='Incremental Capital Summary'!K25 -> 47
B49: CCA Rate | C49: ='Incremental Capital Summary'!M25 -> 0.08
B50: CCA | D50: =D47*$C$49 -> 15946.48 | E50: =E47*$C$49 -> 14670.7616 | F50: =F47*$C$49 -> 13497.10067 | G50: =G47*$C$49 -> 12417.33262 | H50: =H47*$C$49 -> 11423.94601
B51: Closing UCC | D51: =D45-D50 -> 183384.52 | E51: =E45-E50 -> 168713.7584 | F51: =F45-F50 -> 155216.6577 | G51: =G45-G50 -> 142799.3251 | H51: =H45-H50 -> 131375.3791
